Workbook

Sheet Лист1
A1: Школа | B1: МБОУ "Школа №127" | E1: Отд./корп | I1: День | J1: 2023-09-15
A3: Прием пищи | B3: Раздел | C3: № рец. | D3: Блюдо | E3: Выход, г | F3: Цена, руб | G3: Ккал | H3: Белки,г | I3: Жиры,г | J3: Углеводы,г
A4: ='[1]1-2, 11-16, 25-30 сент.'!A29 -> завтрак | B4: ='[1]1-2, 11-16, 25-30 сент.'!B29 -> гор.блюдо | C4: ='[1]1-2, 11-16, 25-30 сент.'!C29 -> ТТК 2021 г | D4: ='[1]1-2, 11-16, 25-30 сент.'!D29 -> Биточки рыбные из фарша минтая | E4: ='[1]1-2, 11-16, 25-30 сент.'!E29 -> 90 | G4: ='[1]1-2, 11-16, 25-30 сент.'!G29 -> 98 | H4: ='[1]1-2, 11-16, 25-30 сент.'!H29 -> 9.8 | I4: ='[1]1-2, 11-16, 25-30 сент.'!I29 -> 2.01 | J4: ='[1]1-2, 11-16, 25-30 сент.'!J29 -> 10.2
B5: ='[1]1-2, 11-16, 25-30 сент.'!B30 -> гор.блюдо | C5: ='[1]1-2, 11-16, 25-30 сент.'!C30 -> №312/2015 г | D5: ='[1]1-2, 11-16, 25-30 сент.'!D30 -> Пюре картофельное | E5: ='[1]1-2, 11-16, 25-30 сент.'!E30 -> 155 | G5: ='[1]1-2, 11-16, 25-30 сент.'!G30 -> 179 | H5: ='[1]1-2, 11-16, 25-30 сент.'!H30 -> 3.32 | I5: ='[1]1-2, 11-16, 25-30 сент.'!I30 -> 8.28 | J5: ='[1]1-2, 11-16, 25-30 сент.'!J30 -> 22.06
B6: ='[1]1-2, 11-16, 25-30 сент.'!B31 -> гор.напиток | C6: ='[1]1-2, 11-16, 25-30 сент.'!C31 -> ТТК 2021 г | D6: ='[1]1-2, 11-16, 25-30 сент.'!D31 -> Напиток из замороженной черной смородины | E6: ='[1]1-2, 11-16, 25-30 сент.'!E31 -> 180 | G6: ='[1]1-2, 11-16, 25-30 сент.'!G31 -> 36 | H6: ='[1]1-2, 11-16, 25-30 сент.'!H31 -> 0.075 | I6: ='[1]1-2, 11-16, 25-30 сент.'!I31 -> 0.025 | J6: ='[1]1-2, 11-16, 25-30 сент.'!J31 -> 8.49
B7: ='[1]1-2, 11-16, 25-30 сент.'!B32 -> хлеб | C7: ='[1]1-2, 11-16, 25-30 сент.'!C32 -> ТТК | D7: ='[1]1-2, 11-16, 25-30 сент.'!D32 -> Хлебная корзина (хлеб пш., хлеб рж.-пш.) | E7: ='[1]1-2, 11-16, 25-30 сент.'!E32 -> 40 | G7: ='[1]1-2, 11-16, 25-30 сент.'!G32 -> 91 | H7: ='[1]1-2, 11-16, 25-30 сент.'!H32 -> 2.52 | I7: ='[1]1-2, 11-16, 25-30 сент.'!I32 -> 0.36 | J7: ='[1]1-2, 11-16, 25-30 сент.'!J32 -> 18.84
A8: ='[1]1-2, 11-16, 25-30 сент.'!A33 -> пятница | B8: ='[1]1-2, 11-16, 25-30 сент.'!B33 -> печенье | C8: ='[1]1-2, 11-16, 25-30 сент.'!C33 -> АКТ 2021 г | D8: ='[1]1-2, 11-16, 25-30 сент.'!D33 -> Печенье сдобное Шоколадное | E8: ='[1]1-2, 11-16, 25-30 сент.'!E33 -> 15 | G8: ='[1]1-2, 11-16, 25-30 сент.'!G33 -> 66 | H8: ='[1]1-2, 11-16, 25-30 сент.'!H33 -> 1.21 | I8: ='[1]1-2, 11-16, 25-30 сент.'!I33 -> 2.3 | J8: ='[1]1-2, 11-16, 25-30 сент.'!J33 -> 10.25
B9: ='[1]1-2, 11-16, 25-30 сент.'!B34 -> закуска | C9: ='[1]1-2, 11-16, 25-30 сент.'!C34 -> № 532/2013г, Самара | D9: Салат-бар(помидоры, огурцы,соленые фасоль,сухарики,растит.масло) | E9: ='[1]1-2, 11-16, 25-30 сент.'!E34 -> 60 | G9: ='[1]1-2, 11-16, 25-30 сент.'!G34 -> 91 | H9: ='[1]1-2, 11-16, 25-30 сент.'!H34 -> 1.67 | I9: ='[1]1-2, 11-16, 25-30 сент.'!I34 -> 6.11 | J9: ='[1]1-2, 11-16, 25-30 сент.'!J34 -> 7.09
A10: ='[1]1-2, 11-16, 25-30 сент.'!A35 -> ИТОГО | E10: ='[1]1-2, 11-16, 25-30 сент.'!E35 -> 540 | F10: 66.80 | G10: ='[1]1-2, 11-16, 25-30 сент.'!G35 -> 561 | H10: ='[1]1-2, 11-16, 25-30 сент.'!H35 -> 18.595 | I10: ='[1]1-2, 11-16, 25-30 сент.'!I35 -> 19.085 | J10: ='[1]1-2, 11-16, 25-30 сент.'!J35 -> 76.93
